bitfinex-derivatives/quotes_SOLF0:USTF0_20250207
["timestamp","ask_amount","ask_price","bid_price","bid_amount"]
[1738899445591,0.03429693,192.91,192.88,0.03505595]
[1738899450200,0.03429693,192.91,192.9,5.1837]
[1738899450900,16.05483394,193.01,192.88,0.03505595]
[1738899451101,74.7155024,193.04,192.9,14.48413394]
[1738899451290,5.1813,192.99,192.91,3.1373]
[1738899451495,18.52413394,193.04,192.96,5.182]
[1738899451900,5.1805,193.03,192.93,14.48413394]
[1738899452094,0.03345058,193.02,192.98,0.03313553]
[1738899454416,5.21405058,193.02,192.98,0.03313553]
[1738899454902,5.1808,193.01,192.98,0.03313553]
[1738899455604,5.1813,192.99,192.98,0.03313553]
[1738899456305,0.03345058,193.02,192.98,0.03313553]
[1738899456542,5.1811,193.0,192.98,0.03313553]
[1738899456697,0.03345058,193.02,192.98,0.03313553]
[1738899457805,5.1813,192.99,192.98,0.03313553]
[1738899460202,5.181,193.01,192.98,0.03313553]
[1738899464207,0.03345058,193.02,192.98,0.03313553]
[1738899464809,0.03345058,193.02,192.98,5.21443553]
[1738899466810,0.03345058,193.02,192.98,0.03313553]
[1738899467602,0.03345058,193.02,192.99,5.1811]
[1738899468109,0.03345058,193.02,192.98,0.03313553]
[1738899468309,0.03345058,193.02,193.0,5.1809]
[1738899470211,0.03345058,193.02,193.01,5.1808]
[1738899471411,0.03345058,193.02,193.0,5.181]
[1738899472212,5.1793,193.07,193.02,5.1803]
[1738899472513,1.6226,193.11,193.01,14.48413394]
[1738899473506,0.03726426,193.08,193.04,0.03801513]
[1738899473815,5.21636426,193.08,193.04,0.03801513]
[1738899476049,0.03726426,193.08,193.07,5.1792]
[1738899476211,0.03726426,193.08,193.04,14.52214907]
[1738899476507,0.03726426,193.08,193.04,0.03801513]
[1738899477811,0.03726426,193.08,193.04,14.52214907]
[1738899478909,0.03726426,193.08,193.07,5.1792]
[1738899479512,80.36775019,193.16,193.04,14.52214907]
[1738899479513,65.88361625,193.16,193.04,14.52214907]
[1738899479712,15.99683394,193.19,193.12,5.1778]
[1738899479713,5.1764,193.18,193.12,5.1778]
[1738899480714,0.03396865,193.17,193.13,0.03810487]
[1738899481516,5.1768,193.16,193.13,0.03810487]
[1738899482516,5.21046865,193.17,193.13,0.03810487]
[1738899482715,0.03396865,193.17,193.13,0.03810487]
[1738899483112,0.03396865,193.17,193.14,5.1773]
[1738899484121,0.03396865,193.17,193.13,0.03810487]
[1738899484318,0.03396865,193.17,193.16,5.1767]
[1738899484661,0.03396865,193.17,193.13,0.03810487]
[1738899485319,5.1773,193.14,193.13,0.03810487]
[1738899487112,14.48413394,193.15,193.01,4.6689]
[1738899487316,14.48413394,193.12,193.01,3.1337]
[1738899487815,14.48413394,193.12,193.03,5.1802]
[1738899488020,14.48413394,193.12,193.01,3.1337]
[1738899488225,0.03304795,193.09,193.06,0.03951645]
[1738899491223,0.03304795,193.09,193.07,5.1792]
[1738899491425,0.03304795,193.09,193.06,0.03951645]
[1738899494729,5.21174795,193.09,193.06,0.03951645]
[1738899495229,0.03304795,193.09,193.06,0.03951645]
[1738899497426,0.03304795,193.09,193.06,5.21881645]
[1738899498732,0.03304795,193.09,193.07,5.1792]
[1738899498929,0.03304795,193.09,193.06,0.03951645]
[1738899499533,0.03304795,193.09,193.08,5.1789]
[1738899503640,10.88767445,193.17,193.07,9.26717445]
[1738899503846,10.94127445,193.21,193.13,9.26717445]
[1738899504041,5.1764,193.18,193.13,9.26717445]
[1738899504646,5.1764,193.18,193.1,14.4713215]
[1738899504847,0.03460333,193.17,193.14,0.03380793]
[1738899510066,0.03460333,193.17,193.16,5.1767]
[1738899513354,0.03460333,193.17,193.14,0.03380793]
[1738899514754,5.21110333,193.17,193.14,0.03380793]
[1738899515947,0.03460333,193.17,193.14,0.03380793]
[1738899517749,0.03460333,193.17,193.14,5.21090793]
[1738899517960,0.03460333,193.17,193.14,0.03380793]
[1738899518462,0.03460333,193.17,193.16,5.1767]
[1738899523661,5.1745,193.25,193.2,5.1755]
[1738899523866,1.5318,193.31,193.19,14.4713215]
[1738899524864,0.03501307,193.27,193.23,0.03929802]
[1738899526763,5.20891307,193.27,193.23,0.03929802]
[1738899527455,0.03501307,193.27,193.23,5.21409802]
[1738899528564,0.03501307,193.27,193.23,0.03929802]
[1738899529164,14.50633457,193.27,193.23,0.03929802]
[1738899529462,5.1746,193.24,193.23,0.03929802]
[1738899532270,14.4713215,193.24,193.13,14.4713215]
[1738899532470,1.6262,193.23,193.13,14.4713215]
[1738899532670,5.1757,193.2,193.13,19.6488215]
[1738899532873,3.2797,193.23,193.13,19.6488215]
[1738899533470,0.03538763,193.2,193.16,0.03497262]
[1738899533874,5.1764,193.18,193.16,0.03497262]
[1738899534080,0.03538763,193.2,193.16,0.03497262]
[1738899534479,5.1765,193.17,193.16,0.03497262]
[1738899535968,0.03538763,193.2,193.16,0.03497262]
[1738899535969,5.1762,193.19,193.16,0.03497262]
[1738899536170,0.03538763,193.2,193.16,0.03497262]
[1738899537868,5.1765,193.17,193.16,0.03497262]
[1738899538070,0.03538763,193.2,193.16,0.03497262]
[1738899538775,5.21128763,193.2,193.16,0.03497262]
[1738899539072,0.03538763,193.2,193.16,5.21167262]
[1738899541666,0.03538763,193.2,193.16,0.03497262]
[1738899541873,0.03538763,193.2,193.18,5.1761]
[1738899543783,0.03538763,193.2,193.19,14.4713215]
[1738899543975,1.5201,193.28,193.19,14.4713215]
[1738899544177,5.1738,193.28,193.22,14.4713215]
[1738899544378,37.19938939,193.33,193.22,14.4713215]
[1738899544580,22.72806789,193.33,193.22,14.4713215]
[1738899544779,22.72806789,193.33,193.25,14.4713215]
[1738899545080,21.11476789,193.33,193.25,14.4713215]
[1738899545275,0.03639299,193.31,193.27,0.03568358]
[1738899545474,5.173,193.3,193.27,0.03568358]
[1738899548383,5.1735,193.28,193.27,0.03568358]
[1738899548884,5.1735,193.28,193.27,8.358e-05]
[1738899550985,8.9935,193.28,193.27,8.358e-05]
[1738899551281,3.82,193.28,193.13,19.6488215]
[1738899551587,5.1761,193.19,193.13,19.6488215]
[1738899552489,0.03305743,193.18,193.14,0.03842874]
[1738899553183,5.1766,193.17,193.14,0.03842874]
[1738899553382,0.03305743,193.18,193.14,0.03842874]
[1738899554888,5.177,193.16,193.14,0.03842874]
[1738899557684,0.03305743,193.18,193.14,0.03842874]
[1738899557891,5.20945743,193.18,193.14,0.03842874]
[1738899561490,0.03305743,193.18,193.14,0.03842874]
[1738899561694,5.1769,193.16,193.14,0.03842874]
[1738899562541,5.177,193.15,193.07,14.4713215]
[1738899562693,14.4713215,193.13,192.97,56.57460671]
[1738899562894,14.4713215,193.09,192.97,56.57460671]
[1738899563093,5.18,193.04,192.97,61.75640671]
[1738899563791,0.03521603,193.03,192.99,0.03701045]
[1738899564699,5.21551603,193.03,192.99,0.03701045]
[1738899564991,0.03521603,193.03,192.99,0.03701045]
[1738899566892,0.03521603,193.03,193.0,5.181]
[1738899567092,0.03521603,193.03,192.99,0.03701045]
[1738899568803,0.03521603,193.03,192.99,5.21831045]
[1738899569192,0.03521603,193.03,192.99,0.03701045]
[1738899573397,5.1809,193.01,192.99,0.03701045]
[1738899573700,0.03521603,193.03,192.99,0.03701045]
[1738899575795,5.1807,193.02,192.99,0.03701045]
[1738899576499,5.1808,193.01,192.99,0.03701045]
[1738899583602,0.03521603,193.03,192.99,0.03701045]
[1738899584903,0.03521603,193.03,193.02,5.1805]
[1738899585605,1.6222,193.12,193.01,14.4713215]
[1738899585804,5.178,193.12,193.01,14.4713215]
[1738899586003,1.5654,193.13,193.04,14.4713215]
[1738899586206,73.71343451,193.14,193.04,14.4713215]
[1738899586505,5.1778,193.12,193.04,14.4713215]
[1738899586905,0.03851054,193.1,193.06,0.03413088]
[1738899590803,5.1792,193.07,193.06,0.03413088]
[1738899595909,0.03851054,193.1,193.06,0.03413088]
[1738899597512,5.21711054,193.1,193.06,0.03413088]
[1738899597715,0.03851054,193.1,193.06,0.03413088]
[1738899598817,5.1786,193.09,193.06,0.03413088]
[1738899599010,0.03851054,193.1,193.06,5.21343088]
[1738899599410,0.03851054,193.1,193.06,0.03413088]
[1738899600417,0.03851054,193.1,193.07,14.4713215]
[1738899600613,5.1773,193.15,193.07,14.4713215]
[1738899601316,5.1768,193.16,193.1,5.1781]
[1738899601706,5.1765,193.18,193.13,5.1775]
[1738899601913,0.03395475,193.15,193.11,0.03377251]
[1738899602812,0.03395475,193.15,193.13,14.4713215]
[1738899603117,21.11476789,193.2,193.13,14.4713215]
[1738899603916,35.58608939,193.27,193.13,14.4713215]
[1738899604416,5.1759,193.2,193.18,0.03283557]
[1738899605615,0.03475509,193.22,193.18,0.03283557]
[1738899605815,5.1759,193.19,193.18,0.03283557]
[1738899607316,5.1776,193.13,193.07,14.4713215]
[1738899607817,14.4713215,193.18,193.07,14.4713215]
[1738899608013,3.8,193.19,193.1,14.4713215]
[1738899608218,18.2713215,193.24,193.1,14.4713215]
[1738899608522,0.03798592,193.16,193.13,0.03889542]
[1738899608720,5.1755,193.21,193.13,0.03889542]
[1738899608917,0.03342908,193.16,193.13,0.03889542]
[1738899609523,5.1773,193.14,193.13,0.03889542]
[1738899611518,0.03342908,193.16,193.13,0.03889542]
[1738899613512,0.03342908,193.16,193.15,5.177]
[1738899613719,5.1754,193.21,193.13,14.51021692]
[1738899614922,0.03853845,193.19,193.16,5.1767]
[1738899615324,0.03853845,193.19,193.13,14.51021692]
[1738899615526,5.21453845,193.19,193.13,19.68761692]
[1738899615823,5.21453845,193.19,193.13,14.51021692]
[1738899616224,0.03853845,193.19,193.13,14.51021692]
[1738899616425,0.03853845,193.19,193.14,5.177]
[1738899617032,0.03853845,193.19,193.13,14.51021692]
[1738899617233,0.03853845,193.19,193.15,5.1769]
[1738899619137,5.21443845,193.19,193.14,5.1772]
[1738899619584,0.03853845,193.19,193.13,0.03889542]
[1738899620335,14.4713215,193.18,193.13,0.03889542]
[1738899620536,16.0529215,193.18,193.13,0.03889542]
[1738899620735,21.4504215,193.18,193.13,0.03889542]
[1738899621335,5.1773,193.14,193.13,0.03889542]
[1738899625228,3.1791,193.18,193.13,0.03889542]
[1738899625540,0.03853845,193.19,193.13,0.03889542]
[1738899626735,5.1764,193.18,193.13,5.21639542]
[1738899627138,0.03853845,193.19,193.13,0.03889542]
[1738899627441,0.03853845,193.19,193.13,14.51021692]
[1738899627640,0.03853845,193.19,193.14,1.6244]
[1738899627835,0.03853845,193.19,193.17,5.1765]
[1738899628237,0.03853845,193.19,193.16,14.4713215]
[1738899629191,0.03853845,193.19,193.18,5.1762]
[1738899629834,5.1741,193.26,193.16,14.4713215]
[1738899630041,1.6689,193.29,193.16,14.4713215]
[1738899631043,0.03758442,193.24,193.21,0.03291527]
[1738899632044,5.1751,193.22,193.21,0.03291527]
[1738899639352,5.1749,193.23,193.21,0.03291527]
[1738899639554,0.03758442,193.24,193.21,0.03291527]
[1738899641453,5.1751,193.22,193.21,0.03291527]
[1738899648656,5.1765,193.17,193.13,5.1774]
[1738899648856,14.4713215,193.25,193.11,3.3147]
[1738899649054,14.4713215,193.25,193.13,14.4713215]
[1738899649458,14.4713215,193.25,193.17,5.1764]
[1738899649852,0.03871406,193.23,193.19,0.03387098]
[1738899650660,9.29855485,193.23,193.19,0.03387098]
[1738899652359,5.1757,193.2,193.19,0.03387098]
[1738899652859,5.1757,193.2,193.19,7.098e-05]
[1738899653860,5.1779,193.12,193.07,14.43884079]
[1738899654160,9.25984079,193.15,193.07,9.25984079]
[1738899654763,14.47944761,193.18,193.08,5.1788]
[1738899654958,0.03867319,193.13,193.09,0.03642074]
[1738899655860,0.03867319,193.13,193.09,5.21482074]
[1738899656061,0.03867319,193.13,193.09,0.03642074]
[1738899656459,0.03867319,193.13,193.1,5.1783]
[1738899656660,0.03867319,193.13,193.09,0.03642074]
[1738899657768,5.21627319,193.13,193.09,0.03642074]
[1738899657959,0.03867319,193.13,193.09,0.03642074]
[1738899658862,5.1779,193.12,193.09,0.03642074]
[1738899659263,5.21627319,193.13,193.09,0.03642074]
[1738899659568,0.03867319,193.13,193.09,0.03642074]
[1738899661464,0.03867319,193.13,193.11,5.178]
[1738899661860,0.03867319,193.13,193.09,0.03642074]
[1738899662061,0.03867319,193.13,193.1,5.1783]
[1738899664468,0.03867319,193.13,193.11,5.178]
[1738899664967,0.03867319,193.13,193.09,0.03642074]
[1738899665167,0.03867319,193.13,193.12,5.1778]
[1738899665468,0.03867319,193.13,193.09,0.03642074]
[1738899665667,5.1782,193.11,193.09,0.03642074]
[1738899666060,0.03867319,193.13,193.09,0.03642074]
[1738899666263,5.1778,193.12,193.09,0.03642074]
[1738899667468,0.03867319,193.13,193.09,0.03642074]
[1738899668867,5.21627319,193.13,193.09,0.03642074]
[1738899669472,5.1779,193.12,193.09,0.03642074]
[1738899670774,5.21627319,193.13,193.09,0.03642074]
[1738899671182,0.03867319,193.13,193.09,0.03642074]
[1738899671480,0.03867319,193.13,193.11,5.1781]
[1738899675180,0.03867319,193.13,193.12,5.1778]
[1738899675375,14.47944761,193.24,193.09,0.03642074]
[1738899675376,14.47944761,193.24,193.11,14.47944761]
[1738899675580,5.1754,193.22,193.17,5.1765]
[1738899676284,5.1744,193.25,193.17,14.47944761]
[1738899676486,22.68096789,193.27,193.17,14.47944761]
[1738899676680,0.03350211,193.21,193.2,9.25499354]
[1738899676880,0.03350211,193.21,193.2,14.43069354]
[1738899677081,5.1744,193.25,193.2,14.43069354]
[1738899677285,0.03697489,193.22,193.2,14.43069354]
[1738899677486,0.03697489,193.22,193.21,5.1754]
[1738899679481,0.03697489,193.22,193.18,1.57942701]
[1738899681180,0.03697489,193.22,193.19,5.1757]
[1738899681684,5.21227489,193.22,193.18,0.03302701]
[1738899681982,0.03697489,193.22,193.18,0.03302701]
[1738899682187,5.1755,193.21,193.18,0.03302701]
[1738899682386,0.03697489,193.22,193.18,0.03302701]
[1738899683586,5.1759,193.2,193.18,0.03302701]
[1738899683790,0.03697489,193.22,193.18,0.03302701]
[1738899685486,0.03697489,193.22,193.18,5.20922701]
[1738899687185,0.03697489,193.22,193.18,0.03302701]
[1738899688387,5.1759,193.19,193.18,0.03302701]
[1738899689692,5.1774,193.14,193.08,14.46127152]
[1738899689932,14.46127152,193.2,193.07,1.5422]
[1738899690291,5.1772,193.15,193.07,1.5422]
[1738899690990,0.03277587,193.13,193.09,5.21776981]
[1738899691790,0.03277587,193.13,193.09,0.03926981]
[1738899692887,5.1784,193.1,193.09,0.03926981]
[1738899694993,5.178,193.12,193.09,0.03926981]
[1738899696796,0.03277587,193.13,193.09,0.03926981]
[1738899697503,0.03277587,193.13,193.1,5.1783]
[1738899698007,0.03277587,193.13,193.11,5.1781]
[1738899698200,0.03277587,193.13,193.09,0.03926981]
[1738899698601,0.03277587,193.13,193.12,5.1778]
[1738899704214,0.03277587,193.13,193.09,3.24036981]
[1738899704412,0.03277587,193.13,193.09,8.41886981]
[1738899704711,0.03277587,193.13,193.09,0.03926981]
[1738899705703,5.1784,193.1,193.09,0.03926981]
[1738899713525,5.18,193.04,192.99,14.46127152]
[1738899713914,14.46127152,193.11,193.0,5.1808]
[1738899714114,5.1801,193.04,192.99,14.46127152]
[1738899714628,5.1801,193.04,193.0,0.03735312]
[1738899714629,0.0366389,193.03,193.0,0.03735312]
[1738899716430,0.0366389,193.03,193.0,5.21825312]
[1738899716928,0.0366389,193.03,193.0,0.03735312]
[1738899717124,0.0366389,193.03,193.02,5.1805]
[1738899717331,1.6242,193.12,193.02,14.46127152]
[1738899718133,5.1786,193.1,193.05,5.1795]
[1738899718324,14.46127152,193.14,193.02,14.46127152]
[1738899718524,3.76,193.15,193.02,14.46127152]
[1738899718525,0.03749841,193.09,193.06,0.03685324]
[1738899719022,0.03749841,193.09,193.07,5.1792]
[1738899719225,0.03749841,193.09,193.06,0.03685324]
[1738899720628,5.21639841,193.09,193.06,0.03685324]
[1738899720831,0.03749841,193.09,193.06,0.03685324]
[1738899721124,5.1792,193.07,193.06,0.03685324]
[1738899721529,0.03749841,193.09,192.96,14.46127152]
[1738899721830,5.1802,193.04,192.98,5.1813]
[1738899722031,5.1802,193.04,192.96,14.46127152]
[1738899722732,0.03656108,193.02,192.98,0.03660875]
[1738899723834,0.03656108,193.02,192.98,5.21810875]
[1738899724238,0.03656108,193.02,192.98,0.03660875]
[1738899725039,0.03656108,193.02,193.0,5.181]
[1738899725733,0.03656108,193.02,192.99,5.1813]
[1738899726237,0.03656108,193.02,192.98,0.03660875]
[1738899726435,0.03656108,193.02,192.98,5.21810875]
[1738899726636,0.03656108,193.02,192.98,0.03660875]
[1738899727135,5.1811,193.0,192.98,0.03660875]
[1738899727936,5.1813,192.99,192.98,0.03660875]
[1738899729639,5.1834,192.92,192.89,3.1321]
[1738899729833,5.1834,192.92,192.89,1.6129]
[1738899730138,14.46127152,192.96,192.84,14.46127152]
[1738899730834,0.03787137,192.92,192.88,0.03362156]
[1738899731334,5.1838,192.9,192.88,0.03362156]
[1738899732240,5.184,192.89,192.88,0.03362156]
[1738899733045,5.185,192.86,192.8,5.1862]
[1738899733234,3.76,192.85,192.71,21.40720533]
[1738899733441,14.46127152,192.8,192.71,21.40720533]
[1738899733636,5.1876,192.76,192.71,21.40720533]
[1738899733843,3.82,192.79,192.71,21.40720533]
[1738899734240,0.03817019,192.77,192.73,0.03267544]
[1738899734742,5.1879,192.75,192.73,0.03267544]
[1738899735160,5.1879,192.75,192.73,7.544e-05]
[1738899735351,14.49944171,192.77,192.71,21.40720533]
[1738899735352,5.1886,192.72,192.71,21.40720533]
[1738899736242,5.1892,192.7,192.68,83.7771014]
[1738899736447,5.1892,192.7,192.6,14.46127152]
[1738899736739,14.46127152,192.71,192.67,0.03384129]
[1738899736941,14.46127152,192.68,192.54,14.46127152]
[1738899737287,0.03899297,192.67,192.59,5.192]
[1738899737745,5.1902,192.66,192.61,0.03921104]
[1738899738242,0.03899297,192.67,192.61,0.03921104]
[1738899740037,5.1908,192.64,192.61,0.03921104]
[1738899741045,0.03899297,192.67,192.61,0.03921104]
[1738899741246,5.191,192.63,192.61,0.03921104]
[1738899741640,14.46127152,192.62,192.61,1.104e-05]
[1738899742244,0.03899297,192.67,192.61,1.104e-05]
[1738899742638,5.191,192.63,192.61,1.104e-05]
[1738899743244,5.1907,192.65,192.61,1.104e-05]
[1738899743449,0.03899297,192.67,192.61,1.104e-05]
[1738899743655,0.03899297,192.67,192.62,5.1911]
[1738899743844,0.03899297,192.67,192.61,1.104e-05]
[1738899744353,5.1905,192.65,192.61,1.104e-05]
[1738899745242,5.22919297,192.67,192.61,1.104e-05]
[1738899746248,5.1909,192.64,192.61,1.104e-05]
[1738899746447,0.03899297,192.67,192.61,1.104e-05]
[1738899746870,23.28427808,192.66,192.61,1.104e-05]
[1738899747045,5.1913,192.62,192.61,1.104e-05]
[1738899748352,28.47467808,192.66,192.61,1.104e-05]
[1738899748554,5.1904,192.66,192.61,1.104e-05]
[1738899749261,0.03899297,192.67,192.61,1.104e-05]
[1738899751353,0.03899297,192.67,192.62,5.191]
[1738899751552,0.03899297,192.67,192.61,1.104e-05]
[1738899752648,5.1904,192.66,192.61,1.104e-05]
[1738899752855,0.03899297,192.67,192.61,1.104e-05]
[1738899753057,23.32327105,192.67,192.61,1.104e-05]
[1738899753257,27.16327105,192.67,192.61,1.104e-05]
[1738899753657,5.1904,192.66,192.61,1.104e-05]
[1738899753852,27.16327105,192.67,192.61,1.104e-05]
[1738899754157,23.28427808,192.64,192.61,1.104e-05]
[1738899755857,5.1913,192.62,192.61,1.104e-05]
[1738899758258,5.1913,192.62,192.25,10.4025]
[1738899758259,38.82427808,192.62,192.25,10.4025]
[1738899758452,23.28427808,192.54,192.45,5.1956]
[1738899758658,23.28427808,192.54,192.41,107.03350327]
[1738899759164,5.1946,192.5,192.41,107.03350327]
[1738899759360,0.03447734,192.49,192.46,0.0376891]
[1738899762259,0.03447734,192.49,192.47,5.1953]
[1738899762860,0.03447734,192.49,192.46,0.0376891]
[1738899763663,0.03447734,192.49,192.46,5.2331891]
[1738899766265,0.03447734,192.49,192.46,0.0376891]
[1738899766566,23.28427808,192.57,192.47,5.1952]
[1738899767407,23.28427808,192.57,192.41,107.03350327]
[1738899767408,27.10427808,192.6,192.5,5.1945]
[1738899767668,27.10427808,192.6,192.5,0.03549029]
[1738899767669,0.039766,192.54,192.5,0.03549029]
[1738899768565,5.233166,192.54,192.5,0.03549029]
[1738899769363,0.039766,192.54,192.5,0.03549029]
[1738899771666,0.039766,192.54,192.52,5.1932]
[1738899771973,14.56925848,192.61,192.51,1.5683]
[1738899772168,21.11476789,192.63,192.51,1.5683]
[1738899772471,5.191,192.62,192.56,5.1922]
[1738899772695,5.191,192.62,192.51,1.5683]
[1738899772880,21.11476789,192.63,192.53,14.56925848]
[1738899773173,14.56925848,192.61,192.51,1.5683]
[1738899773364,0.03701846,192.58,192.55,0.03440784]
[1738899774374,0.03701846,192.58,192.55,5.22700784]
[1738899775274,0.03701846,192.58,192.55,0.03440784]
[1738899775473,23.29660452,192.65,192.57,5.1921]
[1738899775977,21.11476789,192.66,192.57,5.1921]
[1738899776177,87.97519845,192.68,192.55,5.1924]
[1738899776178,5.1908,192.62,192.55,5.1924]
[1738899776683,0.03399358,192.6,192.57,0.03815913]
[1738899779375,5.1918,192.58,192.57,0.03815913]
[1738899780475,0.03399358,192.6,192.57,0.03815913]
[1738899780880,0.03399358,192.6,192.58,5.1918]
[1738899781483,0.03399358,192.6,192.57,0.03815913]
[1738899781788,0.03399358,192.6,192.57,5.23025913]
[1738899782582,0.03399358,192.6,192.59,5.1916]
[1738899782780,56.19136846,192.72,192.57,0.03815913]
[1738899783088,56.19136846,192.72,192.57,23.29660452]
[1738899783283,5.189,192.69,192.63,5.1904]
[1738899783489,56.19136846,192.72,192.58,1.621]
[1738899783783,23.29660452,192.7,192.58,1.621]
[1738899784087,0.03952509,192.66,192.63,0.03867497]
[1738899784490,5.1899,192.65,192.63,0.03867497]
[1738899784884,0.03952509,192.66,192.63,0.03867497]
[1738899786793,0.03952509,192.66,192.64,5.1902]
[1738899786993,0.03952509,192.66,192.63,0.03867497]
[1738899789197,5.1902,192.64,192.63,0.03867497]
[1738899789691,0.03952509,192.66,192.63,0.03867497]
[1738899790289,5.1902,192.64,192.63,0.03867497]
[1738899792390,0.03952509,192.66,192.63,0.03867497]
[1738899793498,0.03952509,192.66,192.64,5.1901]
[1738899793687,0.03952509,192.66,192.63,0.03867497]
[1738899795604,0.03952509,192.66,192.63,5.22887497]
[1738899796705,0.03952509,192.66,192.63,0.03867497]
[1738899797992,5.19,192.65,192.63,0.03867497]
[1738899798199,0.03952509,192.66,192.63,0.03867497]
[1738899800702,5.1901,192.65,192.63,0.03867497]
[1738899800907,14.58642939,192.66,192.63,0.03867497]
[1738899801496,5.1902,192.64,192.63,0.03867497]
[1738899801702,14.58642939,192.66,192.52,1.5227]
[1738899801904,14.5469043,192.62,192.52,1.5227]
[1738899802208,5.1916,192.59,192.54,5.1929]
[1738899802906,0.03294847,192.58,192.55,0.03796286]
[1738899805704,0.03294847,192.58,192.56,5.1923]
[1738899805932,0.03294847,192.58,192.55,0.03796286]
[1738899806102,0.03294847,192.58,192.55,14.58486716]
[1738899806898,0.03294847,192.58,192.55,0.03796286]
[1738899812607,0.03294847,192.58,192.56,5.1921]
[1738899813410,0.03294847,192.58,192.55,0.03796286]
[1738899814309,5.1924,192.56,192.55,0.03796286]
[1738899817804,5.1921,192.57,192.55,0.03796286]
[1738899818219,0.03294847,192.58,192.55,0.03796286]
[1738899821205,5.1924,192.56,192.55,0.03796286]
[1738899824211,5.1922,192.57,192.55,0.03796286]
[1738899824411,0.03294847,192.58,192.55,0.03796286]
[1738899825012,5.1924,192.56,192.55,0.03796286]
[1738899826317,5.1921,192.57,192.55,0.03796286]
[1738899826615,0.03294847,192.58,192.55,0.03796286]
[1738899827211,5.1921,192.57,192.55,0.03796286]
[1738899827421,0.03294847,192.58,192.55,0.03796286]
[1738899831822,5.22474847,192.58,192.55,0.03796286]
[1738899832823,0.03294847,192.58,192.55,0.03796286]
[1738899833818,5.1924,192.56,192.55,0.03796286]
[1738899837124,0.03294847,192.58,192.55,0.03796286]
[1738899837326,5.22494847,192.58,192.55,0.03796286]
[1738899837824,0.03294847,192.58,192.55,0.03796286]
[1738899838123,5.1922,192.57,192.55,0.03796286]
[1738899838327,0.03294847,192.58,192.55,0.03796286]
[1738899839624,5.1924,192.56,192.55,0.03796286]
[1738899841926,0.03294847,192.58,192.55,0.03796286]
[1738899843625,0.03294847,192.58,192.57,5.1921]
[1738899844526,0.03294847,192.58,192.56,5.1924]
[1738899844922,0.03294847,192.58,192.55,0.03796286]
[1738899846842,0.03294847,192.58,192.56,5.1924]
[1738899847715,0.03294847,192.58,192.55,0.03796286]
[1738899849728,5.1924,192.56,192.55,0.03796286]
[1738899854742,5.1922,192.57,192.55,0.03796286]
[1738899855243,0.03294847,192.58,192.55,0.03796286]
[1738899856245,5.22484847,192.58,192.55,0.03796286]
[1738899857245,9.35225107,192.58,192.55,0.03796286]
[1738899857475,14.5117026,192.56,192.55,0.03796286]
[1738899858653,5.1924,192.56,192.55,0.03796286]
[1738899865154,5.1924,192.56,192.55,6.286e-05]
[1738899875462,0.03294847,192.58,192.55,6.286e-05]
[1738899876060,0.03294847,192.58,192.55,5.19266286]
[1738899877981,0.03294847,192.58,192.55,6.286e-05]
[1738899878558,5.1924,192.56,192.55,6.286e-05]
[1738899878865,0.03294847,192.58,192.55,6.286e-05]
[1738899879963,9.32304566,192.57,192.55,6.286e-05]
[1738899880864,5.1924,192.56,192.55,6.286e-05]
[1738899883060,0.03294847,192.58,192.55,6.286e-05]
[1738899883868,0.03294847,192.58,192.55,5.19266286]
[1738899885265,0.03294847,192.58,192.56,5.1923]
[1738899885471,5.1908,192.62,192.55,9.32310852]
[1738899885673,5.1908,192.62,192.55,9.32304566]
[1738899886514,5.1908,192.62,192.57,5.1921]
[1738899886677,0.03969168,192.6,192.57,5.22633484]
[1738899887673,0.03969168,192.6,192.57,0.03423484]
[1738899888471,5.1917,192.59,192.57,0.03423484]
[1738899890375,5.1918,192.58,192.57,0.03423484]
[1738899894183,0.03969168,192.6,192.57,0.03423484]
[1738899895873,5.1916,192.59,192.57,0.03423484]
[1738899899087,0.03969168,192.6,192.57,0.03423484]
[1738899899286,5.1918,192.58,192.57,0.03423484]
[1738899899486,0.03969168,192.6,192.57,0.03423484]
[1738899900631,9.32304566,192.65,192.59,9.32304566]
[1738899900785,9.32304566,192.67,192.59,9.32304566]
[1738899901086,9.32304566,192.63,192.58,1.6138]
[1738899901989,5.1912,192.61,192.59,0.03817812]
[1738899905988,0.0373751,192.62,192.59,0.03817812]
[1738899906388,5.2282751,192.62,192.59,0.03817812]
[1738899906692,0.0373751,192.62,192.59,0.03817812]
[1738899907089,5.191,192.61,192.59,0.03817812]
[1738899908686,5.2281751,192.62,192.59,0.03817812]
[1738899910401,0.0373751,192.62,192.59,0.03817812]
[1738899912996,5.2281751,192.62,192.59,0.03817812]
[1738899916102,0.0373751,192.62,192.59,9.36122378]
[1738899916301,0.0373751,192.62,192.59,14.55272378]
[1738899918002,5.1899,192.66,192.61,9.32304566]
[1738899918231,5.1899,192.66,192.63,9.32304566]